bitfinex/quotes_ETHUSD_20260208
["timestamp","ask_amount","ask_price","bid_price","bid_amount"]
[1770579965876,0.05197014,2121.7,2120.9,1.17873825]
[1770579966238,1.03210365,2121.7,2120.8,0.90248359]
[1770579966443,1.03210365,2121.7,2120.7,4.47382442]
[1770579966645,0.98013351,2121.5,2120.7,4.47382442]
[1770579967148,2.15858092,2121.5,2120.8,1.17879905]
[1770579967868,0.0011,2121.8,2120.9,0.90248359]
[1770579967869,2.15951902,2121.8,2120.9,0.90248359]
[1770579968066,1.01281687,2121.7,2120.9,0.90248359]
[1770579968248,1.01281687,2121.6,2120.9,0.90248359]
[1770579968448,2.15951902,2121.8,2120.9,0.90248359]
[1770579968665,1.0132262,2121.7,2120.9,0.90248359]
[1770579968872,1.0132262,2121.6,2120.9,0.90248359]
[1770579969246,1.0132262,2121.6,2121.0,1.17868929]
[1770579969876,3.17175808,2121.6,2120.9,1.17873568]
[1770579970078,2.15853188,2121.6,2120.9,1.17873568]
[1770579970274,0.98013351,2121.5,2120.9,1.17873568]
[1770579970474,1.01402349,2121.5,2120.9,1.17873568]
[1770579970777,1.17832172,2121.7,2121.0,0.90248359]
[1770579970976,1.01401,2121.6,2121.0,0.90248359]
[1770579971168,1.179375,2121.8,2121.0,0.90248359]
[1770579971362,1.01425913,2121.7,2121.0,0.90248359]
[1770579971559,1.01425913,2121.6,2121.1,1.17863372]
[1770579971760,1.179375,2121.8,2121.1,1.17863372]
[1770579971977,1.014232,2121.7,2121.1,1.17863372]
[1770579972157,1.014232,2121.6,2121.1,1.17863372]
[1770579972356,1.179375,2121.8,2121.1,1.17863372]
[1770579972555,1.01449808,2121.7,2121.1,1.17863372]
[1770579972756,1.01449808,2121.6,2121.1,1.17863372]
[1770579972955,1.179375,2121.8,2121.1,1.17863372]
[1770579973161,1.0144977,2121.7,2121.1,2.08111731]
[1770579973484,1.17934986,2121.8,2121.1,1.17863372]
[1770579973682,1.01454913,2121.7,2121.1,1.17863372]
[1770579973856,0.0011,2121.8,2121.1,1.17863372]
[1770579974054,1.01454533,2121.7,2121.1,2.08111731]
[1770579974354,0.0011,2121.8,2121.1,2.08111731]
[1770579974550,1.01449675,2121.7,2121.1,1.17863372]
[1770579974776,1.01449675,2121.6,2121.1,1.17863372]
[1770579974978,0.0011,2121.8,2121.1,2.12545245]
[1770579975169,1.01454494,2121.7,2121.2,0.92338038]
[1770579975348,0.0011,2121.8,2121.1,1.17863372]
[1770579975349,1.01454494,2121.6,2121.1,1.17863372]
[1770579975660,1.17830041,2121.7,2120.9,5.63828921]
[1770579975861,1.0145063,2121.6,2120.9,5.63828921]
[1770579976063,1.17830041,2121.7,2120.9,5.63828921]
[1770579976262,1.01442353,2121.6,2120.9,5.63828921]
[1770579976458,2.08564615,2121.7,2120.9,5.63828921]
[1770579976664,2.08564615,2121.7,2120.8,1.1787996]
[1770579976665,0.90734574,2121.5,2120.8,1.1787996]
[1770579976864,1.0144759,2121.4,2120.8,2.10217998]
[1770579979276,1.0144759,2121.4,2121.0,0.001]
[1770579983162,1.0144759,2121.3,2121.0,0.001]
[1770579983369,0.0011,2121.5,2121.0,0.001]
[1770579983577,1.01593016,2121.4,2121.0,0.001]
[1770579983892,1.01593016,2121.3,2121.0,0.001]
[1770579984089,1.1795141,2121.5,2121.0,0.001]
[1770579984261,1.01611446,2121.4,2121.0,0.001]
[1770579984582,1.01611446,2121.3,2121.0,0.001]
[1770579984791,2.08685984,2121.5,2121.0,0.001]
[1770579984990,1.01617886,2121.4,2121.0,0.001]
[1770579985161,1.01617886,2121.3,2121.0,0.001]
[1770579985360,1.01642197,2121.2,2121.0,0.001]
[1770579985590,2.08685984,2121.5,2121.0,0.001]
[1770579985773,1.01642281,2121.4,2121.0,0.001]
[1770579985972,1.01642281,2121.3,2121.0,0.001]
[1770579986285,1.01665029,2121.2,2121.0,0.001]
[1770579986496,0.0011,2121.5,2121.0,0.001]
[1770579986661,1.01668607,2121.4,2121.0,0.001]
[1770579986864,1.01668607,2121.3,2121.0,0.001]
[1770579987091,1.01668607,2121.2,2121.0,0.001]
[1770579987296,0.90734574,2121.4,2121.0,0.001]
[1770579987595,1.01699592,2121.3,2121.0,0.001]
[1770579987797,1.01699592,2121.2,2121.0,0.001]
[1770579988000,1.01699592,2121.1,2121.0,0.001]
[1770579990769,1.01699592,2121.4,2121.0,0.001]
[1770579991101,1.01699592,2121.3,2121.0,0.001]
[1770579991393,1.01699592,2121.2,2121.0,0.001]
[1770579991574,1.01699592,2121.1,2121.0,0.001]
[1770579991776,1.01699592,2121.4,2121.0,0.001]
[1770579991974,1.01699592,2121.3,2121.0,0.001]
[1770579992192,1.01699592,2121.2,2121.0,0.001]
[1770579992400,1.01699592,2121.1,2121.0,0.001]
[1770579999801,1.69205433,2121.5,2121.1,0.92338038]
[1770580000005,1.69205433,2121.8,2121.3,0.92338038]
[1770580000511,0.0011,2121.8,2121.3,0.92338038]
[1770580002097,0.0011,2121.8,2121.4,1.17846705]
[1770580004003,0.90844574,2121.8,2121.2,4.47255063]
[1770580004383,0.90844574,2121.8,2121.2,3.294]
[1770580005885,0.93624283,2121.6,2121.0,0.001]
[1770580006209,0.93514283,2121.4,2121.0,0.001]
[1770580007185,0.93624283,2121.6,2121.0,5.20646324]
[1770580007385,0.0011,2121.6,2121.0,5.20646324]
[1770580007804,0.0011,2121.6,2121.2,5.20546324]
[1770580008312,0.0011,2121.6,2121.2,1.17853686]
[1770580010108,0.0011,2121.6,2121.4,1.17846705]
[1770580010535,0.0011,2121.6,2121.3,1.17848627]
[1770580012314,0.0011,2121.6,2121.2,1.17857816]
[1770580012687,1.01666012,2121.5,2121.0,1.17966284]
[1770580013017,0.93514283,2121.5,2121.1,1.17862913]
[1770580014115,0.93514283,2121.5,2121.0,0.001]
[1770580014288,0.93514283,2121.3,2121.0,0.001]
[1770580016518,0.05197014,2121.5,2121.0,0.001]
[1770580016695,1.01676074,2121.4,2121.0,0.001]
[1770580016896,1.01676074,2121.3,2121.0,0.001]
[1770580017093,0.93624283,2121.6,2121.0,0.001]
[1770580017314,1.01672678,2121.5,2121.0,0.001]
[1770580017606,1.01672678,2121.4,2121.0,0.001]
[1770580017804,1.01672678,2121.3,2121.2,0.001]
[1770580019200,0.0011,2121.4,2121.2,0.001]
[1770580027126,0.0011,2121.4,2121.2,1.17957816]
[1770580028498,0.0011,2121.6,2121.2,2.15005625]
[1770580030126,0.0011,2121.6,2121.4,0.001]
[1770580034825,0.93514283,2121.4,2120.8,0.001]
[1770580035026,0.05197014,2121.5,2120.3,0.001]
[1770580035027,0.96309962,2120.8,2120.3,0.001]
[1770580035224,0.96309962,2120.8,2120.4,0.003]
[1770580036121,0.94556031,2121.1,2120.4,1.18202225]
[1770580036324,0.94556031,2121.0,2120.5,0.002]
[1770580036503,0.99753045,2121.0,2120.4,0.003]
[1770580036706,0.99753045,2121.0,2120.4,0.001]
[1770580037550,0.94556031,2120.6,2120.1,0.001]
[1770580037757,0.99753045,2120.6,2120.2,0.002]
[1770580038364,0.94556031,2120.4,2120.2,0.002]
[1770580038857,0.94556031,2120.4,2120.1,0.001]
[1770580039022,0.94556031,2120.4,2120.1,0.003]
[1770580039425,0.94556031,2120.4,2120.1,0.001]
[1770580040966,0.94556031,2120.3,2120.1,0.001]
[1770580041429,0.94556031,2120.3,2120.1,0.003]
[1770580041871,0.94556031,2120.3,2120.1,0.001]
[1770580042270,0.94556031,2120.3,2119.7,0.001]
[1770580042271,0.99753045,2120.3,2119.7,0.001]
[1770580042437,0.94556031,2120.1,2119.7,0.002]
[1770580042637,0.94556031,2120.1,2119.5,0.001]
[1770580042837,0.94556031,2120.1,2119.6,0.002]
[1770580043240,0.94556031,2119.9,2119.6,0.002]
[1770580043656,0.99753045,2119.9,2119.6,0.002]
[1770580044258,0.99753045,2119.9,2119.5,0.001]
[1770580044561,0.99753045,2119.9,2119.3,0.001]
[1770580044739,0.99753045,2119.9,2118.9,0.001]
[1770580044740,0.94556031,2119.7,2118.9,0.001]
[1770580044937,0.94556031,2119.5,2119.2,0.001]
[1770580045142,0.94556031,2119.5,2118.9,0.001]
[1770580045450,2.12513943,2119.4,2118.9,0.001]
[1770580046047,0.99753045,2119.3,2118.9,0.001]
[1770580046249,0.94556031,2119.1,2118.9,0.001]
[1770580046645,0.94556031,2119.1,2118.6,0.001]
[1770580047272,0.94556031,2118.9,2118.6,0.001]
[1770580047480,2.12546624,2118.9,2118.6,0.001]
[1770580047887,2.12546624,2118.9,2118.4,0.001]
[1770580047888,0.94556031,2118.8,2118.4,0.001]
[1770580048046,4.71852344,2119.4,2118.4,0.001]
[1770580048047,0.94556031,2119.2,2118.4,0.96241214]
[1770580048972,2.17694263,2119.7,2118.4,0.96241214]
[1770580049568,0.94556031,2119.6,2118.4,0.96241214]
[1770580049869,0.94556031,2119.6,2118.6,0.96141214]
[1770580050071,4.71712858,2120.0,2118.7,0.96141214]
[1770580050072,2.12484706,2120.0,2118.7,0.96141214]
[1770580050264,0.94556031,2119.9,2118.7,0.96141214]
[1770580050852,0.99753045,2119.9,2118.7,0.96141214]
[1770580052165,2.17687104,2119.9,2118.8,2.14132529]
[1770580052671,0.94556031,2119.8,2118.8,2.14132529]
[1770580053175,0.94556031,2120.3,2118.9,0.96141214]
[1770580053468,0.94556031,2120.1,2119.0,0.96141214]
[1770580054270,0.94556031,2120.0,2119.1,1.17974611]
[1770580054469,0.94556031,2120.0,2119.1,2.14115825]
[1770580054768,2.12473346,2120.2,2119.2,0.96141214]
[1770580056369,2.12473346,2120.2,2119.3,2.14104692]
[1770580056671,0.94556031,2120.1,2119.3,1.17963478]
[1770580056872,0.94666031,2120.1,2119.3,1.17963478]
[1770580060174,2.12585408,2120.1,2119.2,4.71853914]
[1770580060975,2.12585408,2120.1,2119.2,5.67995128]
[1770580061774,0.94666031,2120.1,2119.3,0.96141214]
[1770580061964,0.0011,2120.1,2119.3,0.96141214]
[1770580062267,0.0011,2120.1,2119.4,1.17957912]
[1770580065292,1.01413865,2120.0,2119.4,1.17957912]
[1770580065456,0.0011,2120.1,2119.4,1.17957912]
[1770580066581,0.95354615,2120.0,2119.4,1.17957912]
[1770580068265,1.01508642,2119.9,2119.4,1.17957912]
[1770580068457,0.95354615,2120.0,2119.4,1.17957912]
[1770580068652,1.01516939,2119.9,2119.2,1.17969044]
[1770580068858,0.95354615,2120.0,2119.2,1.17969044]
[1770580069076,1.01517057,2119.9,2119.2,1.17969044]
[1770580069282,0.95464615,2120.0,2119.2,1.17969044]
[1770580069485,1.01531551,2119.9,2119.2,1.17969044]
[1770580069683,0.95464615,2120.0,2119.2,1.17969044]
[1770580069857,1.01531575,2119.9,2119.2,1.17969044]
[1770580070184,0.95354615,2119.9,2119.2,1.17969044]
[1770580072367,0.95354615,2119.6,2119.0,0.001]
[1770580072552,0.95354615,2119.3,2119.0,0.001]
[1770580072756,1.01583629,2119.2,2119.0,0.001]
[1770580072985,0.95354615,2119.7,2119.0,0.001]
[1770580073163,1.01610515,2119.6,2119.0,1.18080157]
[1770580073481,0.95354615,2119.7,2119.0,1.1807895]
[1770580073482,1.01610515,2119.5,2119.0,1.1807895]
[1770580073691,1.01610515,2119.4,2119.0,1.1807895]
[1770580073866,1.01610515,2119.3,2119.0,1.1807895]
[1770580074189,1.01610515,2119.2,2119.0,1.1807895]
[1770580074378,1.17947625,2119.6,2119.0,0.001]
[1770580074579,1.01581459,2119.5,2119.0,0.001]
[1770580074793,1.01581459,2119.4,2119.0,0.001]
[1770580075096,1.01581459,2119.3,2119.0,0.001]
[1770580075311,1.01581459,2119.2,2119.0,0.001]
[1770580075596,2.1330224,2119.6,2119.0,0.001]
[1770580075811,1.01578347,2119.5,2119.0,0.001]
[1770580075979,1.01578347,2119.4,2119.0,0.001]
[1770580076180,1.01578347,2119.3,2119.0,0.001]
[1770580076393,1.01578347,2119.2,2119.0,0.001]
[1770580076597,2.1330224,2119.6,2119.0,0.001]
[1770580076789,1.01581185,2119.5,2119.0,0.001]
[1770580077101,1.01581185,2119.4,2119.0,0.001]
[1770580077280,1.01581185,2119.3,2119.0,0.001]
[1770580077479,8.16312092,2120.0,2119.0,0.001]
[1770580077480,0.0011,2120.0,2119.0,0.001]
[1770580077681,0.0011,2120.0,2119.1,0.92351345]
[1770580077988,0.95464615,2120.0,2119.1,0.92351345]
[1770580078582,0.95464615,2120.0,2119.2,1.17969044]
[1770580079105,0.95464615,2120.0,2119.2,2.10320389]
[1770580080008,0.0011,2120.0,2119.3,0.92351345]
[1770580080512,0.0011,2120.0,2119.4,2.10309257]
[1770580080691,0.0011,2120.0,2119.5,0.92351345]
[1770580081779,0.0011,2120.0,2119.3,1.17959466]
[1770580081780,0.95464615,2120.0,2119.3,1.17959466]
[1770580081981,0.0011,2119.8,2119.3,1.17959466]
[1770580087083,0.0011,2119.8,2119.4,0.92351345]
[1770580087506,0.0011,2119.8,2119.2,0.92351345]
[1770580087908,0.95464615,2119.8,2119.0,2.10431524]
[1770580088618,0.95464615,2119.8,2119.1,0.92351345]
[1770580089036,0.95464615,2119.8,2119.2,5.21531056]
[1770580089411,0.0011,2120.0,2119.4,6.13882401]
[1770580089609,0.0011,2120.2,2119.6,5.21531056]
[1770580089913,0.0011,2120.2,2119.8,5.21531056]
[1770580092034,0.0011,2120.2,2119.9,1.17930091]
[1770580093023,0.95354615,2120.5,2119.9,1.17930091]
[1770580093206,0.95354615,2120.5,2119.8,1.17931423]
[1770580093207,0.95354615,2120.4,2119.8,1.17931423]
[1770580093413,0.95354615,2120.4,2119.7,1.17936958]
[1770580093736,0.95354615,2120.4,2119.8,1.17935445]
[1770580093922,0.0011,2120.0,2119.6,1.17946782]
[1770580095730,0.0011,2120.2,2119.6,2.12152111]
[1770580098842,0.90245156,2120.8,2119.8,0.94205329]
[1770580101149,0.90245156,2120.8,2119.9,2.1213542]
[1770580101447,0.90245156,2120.8,2120.0,0.94205329]
[1770580101641,0.90245156,2120.8,2120.1,3.296]
[1770580103125,0.90245156,2120.8,2120.2,1.17913404]
[1770580103326,0.90245156,2120.7,2120.1,4.47515813]
[1770580104248,0.90245156,2120.5,2120.1,3.296]
[1770580105225,0.90245156,2120.5,2120.1,4.47518939]
[1770580106932,0.90245156,2120.5,2120.1,4.47618939]
[1770580116462,1.01668255,2120.4,2120.1,4.47618939]
[1770580116635,0.90245156,2120.5,2120.1,4.47618939]
[1770580116836,1.01668263,2120.4,2120.1,4.47618939]
[1770580117132,0.90245156,2120.5,2120.1,4.47618939]
[1770580117332,1.01668292,2120.4,2120.1,4.47618939]
[1770580117528,0.90245156,2120.5,2120.1,4.47618939]
[1770580117772,1.01697435,2120.4,2120.1,4.47618939]
[1770580117946,0.90245156,2120.5,2120.1,4.47618939]
[1770580118262,1.01697666,2120.4,2120.1,4.47618939]
[1770580118561,0.90245156,2120.5,2120.1,4.47618939]
[1770580118746,1.01743796,2120.4,2120.1,4.47618939]
[1770580118946,0.90245156,2120.5,2120.1,4.47618939]
[1770580119256,1.91988952,2120.4,2120.1,4.47618939]
[1770580119444,1.01743796,2120.3,2120.1,4.47618939]
[1770580119645,0.90245156,2120.4,2120.1,1.18018939]
[1770580119962,1.01804647,2120.3,2120.1,1.18018939]
[1770580120263,0.90245156,2120.4,2120.1,1.18018939]
[1770580120465,1.0181103,2120.3,2120.1,1.18018939]
[1770580120639,0.90245156,2120.4,2120.1,0.001]
[1770580120836,0.0011,2120.8,2120.2,6.15437737]
[1770580121050,0.90355156,2120.8,2120.2,6.15437737]
[1770580122261,0.0011,2120.8,2120.2,6.15437737]
[1770580122642,0.0011,2120.8,2120.3,1.17907843]
[1770580123585,0.90355156,2120.8,2120.3,1.17907843]
[1770580124474,0.0011,2120.8,2120.3,2.12113172]
[1770580124884,1.17973538,2121.1,2120.3,2.12113172]
[1770580124885,0.0011,2121.1,2120.7,5.207304]
[1770580125415,0.0011,2121.1,2120.7,8.503304]
[1770580125998,0.0011,2121.4,2120.8,0.98524808]
[1770580126184,0.0022,2121.3,2120.9,6.19255208]
[1770580126789,0.0022,2121.3,2121.0,1.17868929]
[1770580127101,0.0022,2121.3,2120.9,1.17873517]
[1770580127978,0.96199496,2121.3,2120.7,8.01133963]
[1770580128174,0.96199496,2121.3,2120.7,8.01141219]
[1770580128370,0.96199496,2121.3,2120.7,3.296]
[1770580128774,0.96199496,2121.3,2120.8,1.1787667]
[1770580129888,0.0011,2121.6,2121.1,5.207304]
[1770580130979,0.0011,2121.2,2121.1,1.17863372]
[1770580131180,0.0011,2121.6,2121.1,1.17863372]
[1770580131507,0.0011,2121.4,2121.1,1.17863372]
[1770580131678,0.0011,2121.4,2121.1,6.38593772]
[1770580131877,0.0011,2121.6,2121.1,6.38593772]
[1770580132270,0.96089496,2121.6,2121.1,1.17863372]
[1770580133385,0.95979496,2121.5,2120.9,1.17870847]
[1770580133701,0.95979496,2121.5,2120.9,6.38601247]
[1770580133911,0.0011,2121.6,2120.9,6.38601247]
[1770580134404,0.96089496,2121.6,2120.9,6.38601247]
[1770580136076,0.0011,2121.6,2121.1,5.207304]
[1770580137095,0.0011,2121.6,2121.1,6.19255208]
[1770580137505,0.95979496,2122.2,2121.5,5.207304]
[1770580138000,0.95979496,2122.2,2121.4,0.98524808]
[1770580138178,0.95979496,2122.2,2121.5,1.1784115]
[1770580138576,0.95979496,2122.1,2121.5,1.1784115]
[1770580139199,1.0117651,2122.1,2121.4,1.17843886]
[1770580139399,0.95979496,2122.1,2121.4,1.17843886]
[1770580140507,0.95979496,2122.1,2121.3,4.71403178]
[1770580140816,0.95979496,2122.1,2121.3,10.90658386]
[1770580141009,0.96089496,2122.3,2121.5,5.207304]
[1770580141686,0.95979496,2122.0,2121.3,1.1785226]
[1770580142014,0.95979496,2121.7,2121.0,1.17866237]
[1770580142318,0.95979496,2121.4,2120.8,1.17879794]
[1770580142485,0.95979496,2121.4,2120.5,5.207304]
[1770580142486,0.95979496,2121.4,2120.7,5.207304]
[1770580142882,0.95979496,2121.3,2120.6,1.17891162]
[1770580143694,0.95979496,2121.3,2121.0,0.001]
[1770580144884,2.13806177,2121.8,2121.0,0.001]
[1770580145088,1.01283437,2121.7,2121.0,0.001]
[1770580145403,0.95979496,2121.8,2121.0,0.001]
[1770580145790,0.95979496,2121.8,2121.0,3.295]
[1770580145989,0.0011,2121.9,2121.1,0.98524808]
[1770580146706,0.0011,2121.9,2121.2,1.17857816]
[1770580147220,0.0011,2121.9,2121.2,2.16382624]
[1770580148433,0.0011,2121.9,2121.3,0.98524808]
[1770580148926,0.0011,2121.9,2121.4,1.17846705]
[1770580150319,0.0011,2121.9,2121.4,2.16371513]
[1770580150723,0.0011,2121.9,2121.4,1.17846705]
[1770580151824,0.0011,2121.9,2121.4,0.98524808]
[1770580152050,0.0011,2122.3,2121.4,0.98524808]
[1770580152850,0.0011,2122.3,2121.6,1.48524808]
[1770580153059,0.96089496,2122.3,2121.7,3.294]
[1770580153231,0.96089496,2122.3,2121.1,5.69933849]
[1770580153232,0.95979496,2121.8,2121.0,0.001]
[1770580153432,0.95979496,2121.8,2121.2,1.17857329]
[1770580153937,0.95979496,2121.8,2121.0,0.001]
[1770580154330,1.01475715,2121.7,2121.0,0.001]
[1770580154530,2.13804551,2121.8,2121.0,0.001]
[1770580154750,1.01475749,2121.7,2121.0,0.001]
[1770580154948,2.13804551,2121.8,2121.0,0.001]
[1770580155123,1.01475766,2121.7,2121.0,0.001]
[1770580155325,0.95979496,2121.8,2121.0,0.001]
[1770580156630,0.95979496,2121.8,2121.3,0.001]
[1770580156833,0.0011,2121.7,2121.3,0.001]
[1770580158659,0.96822867,2121.6,2121.3,0.001]
[1770580160158,0.0011,2121.7,2121.3,0.001]
[1770580161735,0.0011,2121.7,2121.3,0.94991599]
[1770580162839,0.0011,2121.7,2121.3,0.001]
[1770580163176,0.0011,2121.7,2121.3,1.1795226]
[1770580166770,0.0011,2121.7,2121.3,0.001]
[1770580166771,0.96932867,2121.7,2121.3,0.001]
[1770580169261,0.96932867,2121.7,2121.5,0.001]
[1770580171861,0.0011,2121.7,2121.5,0.001]
[1770580173480,0.0011,2121.7,2121.2,4.46397948]
[1770580174678,0.0011,2121.7,2121.3,0.94891599]
[1770580174877,0.0011,2121.9,2121.3,0.94891599]
[1770580175582,0.0011,2121.9,2121.4,1.17846705]
[1770580177781,0.96932867,2121.9,2121.3,4.7138682]
[1770580179585,0.96932867,2121.9,2121.1,4.71441756]
[1770580179775,0.96822867,2121.7,2121.2,1.17853759]
[1770580179977,0.96822867,2121.6,2121.0,0.001]
[1770580180484,0.96822867,2121.4,2121.0,0.001]
[1770580181969,0.96822867,2121.4,2121.2,0.001]
[1770580182497,0.96822867,2121.4,2121.0,0.001]
[1770580182498,0.96822867,2121.2,2121.0,0.001]
[1770580182674,1.98543401,2121.1,2121.0,0.001]
[1770580184269,0.96822867,2121.0,2120.3,1.18007843]
[1770580186368,0.96849848,2120.8,2120.2,0.001]
[1770580186781,0.96849848,2121.0,2120.2,1.18013242]
[1770580186981,1.01574772,2120.9,2120.2,1.18013242]
[1770580187182,0.96849848,2121.0,2120.2,1.18013242]
[1770580188365,0.96849848,2121.0,2120.2,0.001]
[1770580190169,2.14685443,2121.6,2120.4,0.93083834]
[1770580190390,1.98263801,2121.5,2120.6,0.93083834]
[1770580190595,0.96849848,2121.5,2120.6,0.93083834]
[1770580192700,0.96849848,2121.5,2120.7,1.17885603]
[1770580193592,0.96849848,2121.5,2120.7,2.10969437]
[1770580193770,0.96849848,2121.5,2120.8,0.001]
[1770580194194,0.96959848,2121.7,2120.8,0.93183834]
[1770580194394,1.01418039,2121.6,2120.8,0.93183834]
[1770580194602,0.96959848,2121.7,2120.8,0.93183834]
[1770580194770,1.01414671,2121.6,2120.9,1.17874487]
[1770580194972,0.96959848,2121.7,2120.9,1.17874487]
[1770580195173,1.98264504,2121.6,2120.9,1.17874487]
[1770580195375,0.96849848,2121.5,2120.9,1.17874487]
[1770580197401,0.96849848,2121.5,2120.8,0.001]
[1770580198792,1.01454082,2121.4,2120.8,0.001]
[1770580198977,0.96849848,2121.3,2120.8,0.001]
[1770580199379,1.2303932,2121.5,2120.8,0.001]
[1770580199380,1.17857816,2121.2,2120.8,0.001]
[1770580199706,0.96849848,2121.1,2120.8,0.001]
[1770580201299,0.96849848,2121.2,2120.8,0.001]
[1770580202194,0.96849848,2121.4,2120.8,0.001]
[1770580202506,1.01460757,2121.3,2120.8,0.001]
[1770580202807,0.96849848,2121.4,2120.8,0.001]
[1770580203019,1.01460546,2121.3,2120.8,0.001]
[1770580203334,0.96959848,2121.9,2120.9,0.25746826]
[1770580203482,0.0011,2121.9,2121.2,1.43604642]
[1770580204283,0.0011,2122.1,2121.4,0.25746826]
[1770580206015,0.0011,2122.1,2121.5,1.1784115]
[1770580206255,0.0011,2122.1,2121.6,0.5]
[1770580206408,0.0011,2122.1,2121.5,1.1784115]
[1770580208709,0.0011,2122.4,2121.6,0.25636826]
[1770580209012,0.0011,2122.4,2121.7,3.55036826]
[1770580209832,0.96959848,2122.4,2121.4,4.713646]
[1770580210118,0.96959848,2122.4,2121.5,3.294]
[1770580210444,0.1336525,2123.3,2122.4,0.24608644]
[1770580210644,0.003,2123.5,2122.6,1.43416907]
[1770580211131,0.96849848,2124.1,2122.9,7.70805315]
[1770580211294,0.96849848,2124.1,2122.9,0.25636826]
[1770580211726,0.96849848,2124.1,2122.6,1.67780081]
[1770580211727,0.96849848,2124.1,2122.8,0.25636826]
[1770580211908,0.35060647,2124.2,2123.0,0.25636826]
[1770580212425,0.35060647,2124.2,2123.3,0.25636826]
[1770580212728,0.01055805,2126.2,2124.9,0.24602175]
[1770580212932,5.92592066,2126.8,2124.9,0.24602175]
[1770580212933,6.06588996,2127.5,2125.2,7.45168489]
[1770580213094,0.97807494,2127.1,2125.7,0.93083834]
[1770580213302,0.97807494,2127.1,2125.8,3.293]
[1770580213534,0.00957646,2127.1,2126.0,7.45168489]
[1770580213711,0.00957646,2127.1,2126.0,3.293]
[1770580213712,1.02046862,2127.0,2126.0,3.293]
[1770580213900,0.96849848,2127.0,2126.0,3.293]
[1770580214101,1.23688761,2127.1,2126.0,3.293]
[1770580214102,0.00957646,2127.1,2126.0,10.74468489]
[1770580214404,2.1432553,2128.1,2126.5,0.93083834]
[1770580214603,4.57470768,2128.2,2126.8,0.93083834]
[1770580214826,4.57470885,2128.2,2127.0,0.98455292]
[1770580215025,4.57470885,2128.2,2126.5,4.70234176]
[1770580215026,0.97529418,2128.1,2126.5,1.17563061]
[1770580215197,7.91967899,2128.2,2126.6,0.96426121]
[1770580215397,0.96060156,2127.9,2126.5,1.17563368]
[1770580215597,0.96060156,2127.9,2126.5,2.13989489]
[1770580215809,0.96060156,2127.9,2126.6,0.96426121]
[1770580216007,0.96060156,2128.1,2126.6,0.96426121]
[1770580216248,0.96060156,2128.1,2126.0,0.38794044]
[1770580216249,1.0125717,2127.2,2125.7,0.96426121]
[1770580216530,1.0125717,2127.2,2124.9,1.21028296]
[1770580216531,0.05197014,2126.1,2124.9,1.21028296]
[1770580216741,0.1024,2127.0,2124.9,1.21028296]
[1770580216742,30.0,2128.0,2125.6,0.05197014]
[1770580216900,0.05197014,2127.3,2126.4,0.05197014]
[1770580217103,0.96060156,2127.4,2125.9,3.11497014]
[1770580217333,3.291,2128.3,2125.6,7.45168489]
[1770580217334,0.96060156,2127.6,2125.6,8.6495164]
[1770580217627,0.96060156,2127.4,2125.7,3.34297014]
[1770580217999,0.96060156,2127.9,2126.0,1.01623135]
[1770580218304,0.96060156,2127.7,2126.0,1.01623135]
[1770580218508,0.0011,2126.8,2126.0,1.01623135]
[1770580218701,0.0011,2126.8,2125.7,1.17604679]
[1770580218702,0.05197014,2126.7,2125.7,1.17604679]
[1770580218897,0.0011,2126.8,2126.0,1.17590455]
[1770580219630,1.1760006,2127.9,2126.4,0.96426121]
[1770580219827,0.05197014,2127.8,2126.5,3.29]
[1770580220032,1.22797074,2127.9,2126.5,3.29]
[1770580220533,0.05197014,2127.8,2126.5,3.29]
[1770580220754,1.17497767,2127.7,2126.4,0.96426121]
[1770580221028,0.05197014,2127.5,2126.5,1.17562791]
[1770580221198,2.13557923,2127.7,2126.4,1.17566621]
[1770580221598,2.13557923,2127.7,2126.5,1.17562282]
[1770580221830,2.13557923,2127.7,2126.4,1.17569542]
[1770580221831,2.18754937,2127.7,2126.4,1.17569542]
[1770580222028,0.05197014,2127.4,2126.0,0.96426121]
[1770580222234,0.05197014,2127.5,2126.3,1.17572703]
[1770580222398,0.96060156,2127.6,2126.5,1.1756229]
[1770580222721,0.96060156,2127.6,2126.1,3.289]
[1770580222722,1.17508813,2127.5,2126.2,2.14006781]
[1770580223113,1.17492245,2127.8,2126.2,1.1758066]
[1770580223311,1.22689259,2127.8,2126.2,2.14006781]
[1770580223634,0.96060156,2127.7,2126.2,2.14006781]
[1770580223828,1.22689259,2127.8,2126.1,1.17581989]
[1770580223829,0.05197014,2127.2,2126.1,1.17581989]
[1770580224003,1.0125717,2127.5,2126.1,1.17581989]
[1770580224752,0.05197014,2126.6,2125.0,0.96426121]
[1770580224907,1.0125717,2126.9,2125.3,1.17629046]
[1770580225216,1.0125717,2126.9,2125.5,1.17618737]
[1770580225531,1.0125717,2126.9,2125.4,1.17621061]
[1770580225732,0.96060156,2126.6,2125.4,1.17623394]
[1770580225939,0.96060156,2126.6,2125.3,1.17626866]
[1770580226121,1.0125717,2126.5,2125.1,0.96426121]
[1770580226322,1.0125717,2126.5,2125.2,1.17631498]
[1770580226645,0.05197014,2126.4,2124.8,0.96426121]
[1770580226810,0.05197014,2126.4,2124.7,1.17663287]
[1770580226811,1.0125717,2126.1,2124.7,1.17663287]
[1770580227017,0.96060156,2126.1,2124.8,1.1765792]
[1770580227942,0.05197014,2126.0,2124.8,1.17657604]
[1770580228115,1.0125717,2126.0,2124.8,1.17657604]
[1770580228517,2.36537202,2128.1,2124.8,1.17657604]
[1770580228518,1.17547489,2126.8,2125.2,0.96426121]
[1770580228839,0.96060156,2127.3,2125.2,0.96426121]
[1770580228840,4.70079003,2127.4,2125.6,0.96426121]
[1770580229040,1.17514336,2127.4,2126.0,0.96426121]
[1770580229412,3.288,2127.5,2126.0,0.96426121]
[1770580229617,4.4630994,2127.5,2126.0,0.96426121]
[1770580229839,1.17597688,2127.9,2126.5,0.96426121]
[1770580230526,0.05197014,2127.7,2126.2,0.5]
[1770580230825,0.96060156,2127.8,2126.2,1.1758066]
[1770580231020,0.05197014,2127.4,2125.8,7.45268489]
[1770580231346,0.05197014,2127.4,2126.1,1.17584614]
[1770580231915,0.05197014,2127.4,2125.8,0.001]
[1770580231916,1.0125717,2127.1,2125.8,0.001]
[1770580232411,0.05197014,2126.8,2125.8,0.001]
[1770580232608,0.05197014,2126.5,2125.8,0.001]
[1770580232846,1.17569601,2126.4,2125.0,1.17643534]
[1770580234247,0.05197014,2126.2,2125.0,1.17643534]